fUSD/lending_fUSD_20250116
["ID","MTS","AMOUNT","RATE_DAILY","PERIOD"]
[349182486,1737018642863,-500.0,0.00041675,25]
[349182487,1737018642873,-500.0,0.00041675,25]
[349182488,1737018642883,-487.51870818,0.00041675,25]
[349182489,1737018642893,-714.26,0.00041675,25]
[349182492,1737018642902,-500.0,0.00041675,25]
[349182494,1737018642912,-714.26,0.00041675,25]
[349182495,1737018642920,-500.0,0.00041675,25]
[349182497,1737018642930,-714.26,0.00041675,25]
[349182498,1737018642940,-714.26,0.00041675,25]
[349182499,1737018642950,-500.0,0.00041675,25]
[349182500,1737018642960,-500.0,0.00041675,25]
[349182501,1737018642970,-500.0,0.00041675,25]
[349182502,1737018642980,-500.0,0.00041675,25]
[349182503,1737018642991,-500.0,0.00041675,25]
[349182504,1737018643001,-1131.77,0.00041675,25]
[349182505,1737018643012,-1131.77,0.00041675,25]
[349182506,1737018643023,-1131.77,0.00041675,25]
[349182508,1737018643033,-1131.77,0.00041675,25]
[349182509,1737018643043,-500.0,0.00041675,25]
[349182510,1737018643053,-500.0,0.00041675,25]
[349182511,1737018643062,-500.0,0.00041675,25]
[349182512,1737018643072,-500.0,0.00041675,25]
[349182513,1737018643081,-500.0,0.00041675,25]
[349182514,1737018643090,-500.0,0.00041675,25]
[349182516,1737018643098,-500.0,0.00041675,25]
[349182517,1737018643108,-500.0,0.00041675,25]
[349182519,1737018643117,-500.0,0.00041675,25]
[349182521,1737018643127,-505.89982287,0.00041675,25]
[349182522,1737018643136,-500.0,0.00041675,25]
[349182523,1737018643146,-500.0,0.00041675,25]
[349182524,1737018643155,-500.0,0.00041675,25]
[349182525,1737018643164,-500.0,0.00041675,25]
[349182526,1737018643173,-500.0,0.00041675,25]
[349182527,1737018643182,-500.0,0.00041675,25]
[349182528,1737018643192,-500.0,0.00041675,25]
[349182529,1737018643203,-1995.16,0.00041675,25]
[349182530,1737018643212,-500.0,0.00041675,25]
[349182531,1737018643223,-1995.16,0.00041675,25]
[349182532,1737018643233,-454.84,0.00041675,25]
[349182533,1737018643243,-500.0,0.00041675,25]
[349182534,1737018643358,-1995.16,0.00041675,25]
[349182535,1737018643368,-500.0,0.00041675,25]
[349182536,1737018643378,-500.0,0.00041675,25]
[349182537,1737018643388,-500.0,0.00041675,25]
[349182538,1737018643398,-500.0,0.00041675,25]
[349182539,1737018643408,-500.0,0.00041675,25]
[349182540,1737018643418,-151.0,0.00041675,14]
[349182541,1737018643433,-239.5345,0.00041675,14]
[349182542,1737018643443,-1133.32,0.00041675,25]
[349182543,1737018643453,-1133.32,0.00041675,25]
[349182544,1737018643463,-1133.32,0.00041675,25]
[349182545,1737018643475,-1133.32,0.00041675,25]
[349182546,1737018643485,-500.0,0.00041675,25]
[349182547,1737018643495,-500.0,0.00041675,25]
[349182548,1737018643505,-500.0,0.00041675,25]
[349182549,1737018643515,-500.0,0.00041675,25]
[349182550,1737018643526,-500.0,0.00041675,25]
[349182551,1737018643536,-500.0,0.00041675,25]
[349182552,1737018643546,-588.69,0.00041675,25]
[349182553,1737018643555,-500.0,0.00041675,25]
[349182554,1737018643565,-505.43545016,0.00041675,25]
[349182555,1737018643575,-500.0,0.00041675,25]
[349182556,1737018643586,-883.26,0.00041675,25]
[349182557,1737018643596,-151.0,0.00041675,14]
[349182558,1737018643606,-883.26,0.00041675,25]
[349182560,1737018643615,-151.0,0.00041675,14]
[349182562,1737018643624,-883.26,0.00041675,25]
[349182563,1737018643633,-151.0,0.00041675,14]
[349182565,1737018643642,-883.26,0.00041675,25]
[349182567,1737018643651,-500.0,0.00041675,25]
[349182569,1737018643661,-500.0,0.00041675,25]
[349182570,1737018643670,-500.0,0.00041675,25]
[349182572,1737018643680,-491.87507469,0.00041675,25]
[349182574,1737018643689,-500.0,0.00041675,25]
[349182576,1737018643697,-500.0,0.00041675,25]
[349182578,1737018643707,-500.0,0.00041675,25]
[349182580,1737018643716,-500.0,0.00041675,25]
[349182582,1737018643725,-509.24629197,0.00041675,25]
[349182584,1737018643735,-500.0,0.00041675,25]
[349182585,1737018643745,-500.0,0.00041675,25]
[349182587,1737018643754,-500.0,0.00041675,25]
[349182589,1737018643764,-500.0,0.00041675,25]
[349182591,1737018643773,-500.0,0.00041675,25]
[349182593,1737018643782,-519.19,0.00041675,25]
[349182594,1737018643792,-519.19,0.00041675,25]
[349182596,1737018643802,-2040.14,0.00041675,25]
[349182598,1737018643812,-519.19,0.00041675,25]
[349182600,1737018643821,-2040.14,0.00041675,25]
[349182602,1737018643831,-519.19,0.00041675,25]
[349182604,1737018643841,-2040.14,0.00041675,25]
[349182605,1737018643851,-2040.14,0.00041675,25]
[349182607,1737018643861,-500.0,0.00041675,25]
[349182609,1737018643871,-182.172943,0.00041675,14]
[349182611,1737018643881,-500.0,0.00041675,25]
[349182614,1737018643891,-500.0,0.00041675,25]
[349182616,1737018643901,-500.0,0.00041675,25]
[349182618,1737018643911,-151.0,0.00041675,14]
[349182619,1737018643922,-500.0,0.00041675,25]
[349182620,1737018643932,-151.0,0.00041675,14]
[349182621,1737018643942,-151.0,0.00041675,14]
[349182622,1737018643952,-500.0,0.00041675,25]
[349182623,1737018643962,-500.0,0.00041675,25]
[349182624,1737018643971,-500.0,0.00041675,25]
[349182625,1737018643981,-500.0,0.00041675,25]
[349182626,1737018643991,-151.150023,0.00041675,14]
[349182627,1737018644001,-500.0,0.00041675,25]
[349182628,1737018644011,-500.0,0.00041675,25]
[349182629,1737018644021,-500.0,0.00041675,25]
[349182630,1737018644030,-2545.42,0.00041675,25]
[349182631,1737018644047,-2545.42,0.00041675,25]
[349182632,1737018644065,-2545.42,0.00041675,25]
[349182633,1737018644074,-500.0,0.00041675,25]
[349182634,1737018644084,-1308.06,0.00041675,25]
[349182635,1737018644093,-500.0,0.00041675,25]
[349182636,1737018644104,-1308.06,0.00041675,25]
[349182637,1737018644115,-1308.06,0.00041675,25]
[349182638,1737018644125,-500.0,0.00041675,25]
[349182639,1737018644134,-1308.06,0.00041675,25]
[349182640,1737018644144,-500.0,0.00041675,25]
[349182641,1737018644153,-979.63,0.00041675,25]
[349182642,1737018644162,-979.63,0.00041675,25]
[349182643,1737018644172,-979.63,0.00041675,25]
[349182644,1737018644182,-500.0,0.00041675,25]
[349182645,1737018644192,-500.0,0.00041675,25]
[349182646,1737018644202,-500.0,0.00041675,25]
[349182647,1737018644212,-506.06226391,0.00041675,25]
[349182648,1737018644221,-500.0,0.00041675,25]
[349182649,1737018644231,-500.0,0.00041675,25]
[349182650,1737018644240,-500.0,0.00041675,25]
[349182651,1737018644250,-500.0,0.00041675,25]
[349182652,1737018644259,-500.0,0.00041675,25]
[349182653,1737018644269,-500.0,0.00041675,25]
[349182654,1737018644279,-500.0,0.00041675,25]
[349182655,1737018644289,-1444.04,0.00041675,25]
[349182656,1737018644300,-500.0,0.00041675,25]
[349182657,1737018644309,-1444.04,0.00041675,25]
[349182658,1737018644319,-500.0,0.00041675,25]
[349182659,1737018644328,-500.0,0.00041675,25]
[349182660,1737018644338,-1444.04,0.00041675,25]
[349182661,1737018644347,-500.0,0.00041675,25]
[349182662,1737018644357,-1444.04,0.00041675,25]
[349182663,1737018644367,-500.0,0.00041675,25]
[349182664,1737018644377,-500.0,0.00041675,25]
[349182665,1737018644386,-500.0,0.00041675,25]
[349182666,1737018644396,-500.0,0.00041675,25]
[349182667,1737018644405,-500.0,0.00041675,25]
[349182668,1737018644415,-3482.77,0.00041675,25]
[349182669,1737018644428,-3482.77,0.00041675,25]
[349182670,1737018644438,-3482.77,0.00041675,25]
[349182671,1737018644447,-501.66328934,0.00041675,25]
[349182672,1737018644458,-500.0,0.00041675,25]
[349182673,1737018644469,-500.0,0.00041675,25]
[349182674,1737018644480,-500.0,0.00041675,25]
[349182675,1737018644489,-500.0,0.00041675,25]
[349182676,1737018644502,-532.33803744,0.00041675,25]
[349182677,1737018644515,-467.78,0.00041675,25]
[349182678,1737018644525,-500.0,0.00041675,25]
[349182679,1737018644535,-500.0,0.00041675,25]
[349182680,1737018644544,-880.3,0.00041675,25]
[349182681,1737018644555,-880.3,0.00041675,25]
[349182682,1737018644566,-880.3,0.00041675,25]
[349182683,1737018644575,-500.0,0.00041675,25]
[349182684,1737018644584,-500.0,0.00041675,25]
[349182685,1737018644594,-500.0,0.00041675,25]
[349182686,1737018644604,-500.0,0.00041675,25]
[349182687,1737018644614,-500.0,0.00041675,25]
[349182688,1737018644623,-500.0,0.00041675,25]
[349182689,1737018644633,-500.0,0.00041675,25]
[349182690,1737018644642,-500.0,0.00041675,25]
[349182691,1737018644651,-500.0,0.00041675,25]
[349182692,1737018644661,-500.0,0.00041675,25]
[349182693,1737018644671,-500.0,0.00041675,25]
[349182694,1737018644681,-500.0,0.00041675,25]
[349182695,1737018644690,-500.0,0.00041675,25]
[349182696,1737018644700,-512.84630504,0.00041675,25]
[349182697,1737018644709,-500.0,0.00041675,25]
[349182698,1737018644719,-500.0,0.00041675,25]
[349182699,1737018644729,-500.0,0.00041675,25]
[349182700,1737018644739,-500.0,0.00041675,25]
[349182701,1737018644749,-500.0,0.00041675,25]
[349182702,1737018644759,-500.0,0.00041675,25]
[349182703,1737018644769,-500.0,0.00041675,25]
[349182704,1737018644779,-500.0,0.00041675,25]
[349182705,1737018644789,-359.99157286,0.00041675,25]
[349182706,1737018644800,-500.0,0.00041675,25]
[349182707,1737018644810,-500.0,0.00041675,25]
[349182708,1737018644821,-500.0,0.00041675,25]
[349182709,1737018644830,-500.0,0.00041675,25]
[349182710,1737018644840,-500.0,0.00041675,25]
[349182711,1737018644850,-832.01,0.00041675,25]
[349182712,1737018644860,-622.29,0.00041675,25]
[349182713,1737018644870,-832.01,0.00041675,25]
[349182714,1737018644880,-622.29,0.00041675,25]
[349182715,1737018644889,-832.01,0.00041675,25]
[349182716,1737018644898,-622.29,0.00041675,25]
[349182717,1737018644907,-832.01,0.00041675,25]
[349182718,1737018644917,-231.73335319,0.00041675,25]
[349182719,1737018644927,-8.830527,0.00041675,25]
[349182720,1737018644962,-761.239473,0.00041675,25]
[349182721,1737018644972,-170.65258538,0.00041675,25]
[349182722,1737018645056,-289.15000193,0.00041675,25]
[349182723,1737018645068,-310.26741269,0.00041675,25]
[349182724,1737018645078,-770.07,0.00041675,25]
[349182725,1737018645087,-54.06467389,0.00041675,25]
[349182726,1737018645117,-716.00532611,0.00041675,25]
[349182727,1737018645126,-500.0,0.00041675,25]
[349182728,1737018645136,-500.0,0.00041675,25]
[349182729,1737018645146,-121.08944377,0.00041675,25]
[349182730,1737018645159,-378.91055623,0.00041675,25]
[349182731,1737018645168,-14.02944377,0.00041675,25]
[349182732,1737018645180,-308.65834589,0.00041675,25]
[349182733,1737018645196,-177.31221034,0.00041675,25]
[349182734,1737018645204,-500.0,0.00041675,25]
[349182735,1737018645212,-500.0,0.00041675,25]
[349182736,1737018645219,-500.0,0.00041675,25]
[349182737,1737018645227,-28.24606286,0.00041675,25]
[349182738,1737018645484,-471.75393714,0.00041675,25]
[349182739,1737018645500,-500.0,0.00041675,25]
[349182740,1737018645515,-529.87864087,0.00041675,25]
[349182741,1737018645525,-500.0,0.00041675,25]
[349182742,1737018645534,-500.0,0.00041675,25]
[349182743,1737018645543,-500.0,0.00041675,25]
[349182744,1737018645556,-500.0,0.00041675,25]
[349182745,1737018645566,-500.0,0.00041675,25]
[349182746,1737018645575,-500.0,0.00041675,25]
[349182747,1737018645585,-500.0,0.00041675,25]
[349182748,1737018645595,-500.0,0.00041675,25]
[349182749,1737018645605,-525.55364568,0.00041675,25]
[349182750,1737018645618,-278.71635432,0.00041675,25]
[349182751,1737018645628,-681.16,0.00041675,25]
[349182752,1737018645638,-804.27,0.00041675,25]
[349182753,1737018645648,-500.0,0.00041675,25]
[349182754,1737018645658,-21.46479203,0.00041675,25]
[349182755,1737018645671,-659.69520797,0.00041675,25]
[349182756,1737018645680,-804.27,0.00041675,25]
[349182757,1737018645690,-681.16,0.00041675,25]
[349182758,1737018645700,-582.61809236,0.00041675,25]
[349182759,1737018645713,-221.65190764,0.00041675,25]
[349182760,1737018645724,-501.61635999,0.00041675,25]
[349182761,1737018645734,-241.7555566,0.00041675,25]
[349182762,1737018645748,-258.2444434,0.00041675,25]
[349182763,1737018645758,-500.0,0.00041675,25]
[349182764,1737018645769,-720.9,0.00041675,25]
[349182765,1737018645780,-194.6055566,0.00041675,25]
[349182776,1737018646203,-500.58,0.0004118,2]
[349182777,1737018646213,-1032.68618,0.00041675,25]
[349182778,1737018646225,-679.8782634,0.00041675,25]
[349182779,1737018646235,-720.9,0.00041675,25]
[349182780,1737018646244,-720.9,0.00041675,25]
[349182781,1737018646254,-1907.17,0.00041675,25]
[349182782,1737018646264,-912.1067366,0.00041675,25]
[349182783,1737018646274,-995.0632634,0.00041675,25]
[349182784,1737018646283,-174.08660217,0.00041675,25]
[349182785,1737018646295,-1733.08339783,0.00041675,25]
[349182786,1737018646307,-720.9,0.00041675,25]
[349182787,1737018646316,-500.0,0.00041675,25]
[349182788,1737018646328,-500.0,0.00041675,25]
[349182789,1737018646337,-500.0,0.00041675,25]
[349182790,1737018646346,-500.0,0.00041675,25]
[349182791,1737018646356,-1176.59,0.00041675,25]
[349182792,1737018646365,-1176.59,0.00041675,25]
[349182793,1737018646375,-1176.59,0.00041675,25]
[349182794,1737018646385,-500.0,0.00041675,25]
[349182795,1737018646395,-500.0,0.00041675,25]
[349182796,1737018646404,-500.0,0.00041675,25]
[349182797,1737018646413,-500.0,0.00041675,25]
[349182798,1737018646424,-500.0,0.00041675,25]
[349182799,1737018646434,-500.0,0.00041675,25]
[349182800,1737018646444,-500.0,0.00041675,25]
[349182801,1737018646454,-500.0,0.00041675,25]
[349182802,1737018646464,-509.77953626,0.00041675,25]
[349182803,1737018646474,-500.0,0.00041675,25]
[349182804,1737018646484,-500.0,0.00041675,25]
[349182805,1737018646493,-583.51,0.00041675,25]
[349182806,1737018646503,-500.0,0.00041675,25]
[349182807,1737018646513,-583.51,0.00041675,25]
[349182808,1737018646522,-583.51,0.00041675,25]
[349182809,1737018646532,-583.51,0.00041675,25]
[349182810,1737018646542,-154.763687,0.00041675,14]
[349182811,1737018646552,-1957.68,0.00041675,25]
[349182814,1737018646562,-1957.68,0.00041675,25]
[349182817,1737018646571,-1957.68,0.00041675,25]
[349182818,1737018646581,-1024.4,0.00041675,25]
[349182820,1737018646590,-1957.68,0.00041675,25]
[349182822,1737018646598,-500.0,0.00041675,25]
[349182824,1737018646608,-1024.4,0.00041675,25]
[349182825,1737018646617,-500.0,0.00041675,25]
[349182827,1737018646627,-1024.4,0.00041675,25]
[349182829,1737018646644,-500.0,0.00041675,25]
[349182831,1737018646654,-1270.4,0.00041675,25]
[349182833,1737018646663,-1270.4,0.00041675,25]
[349182834,1737018646672,-1270.4,0.00041675,25]
[349182836,1737018646681,-1270.4,0.00041675,25]
[349182838,1737018646690,-500.0,0.00041675,25]
[349182840,1737018646700,-500.0,0.00041675,25]
[349182842,1737018646709,-500.0,0.00041675,25]
[349182844,1737018646722,-151.0,0.00041675,14]
[349182846,1737018646731,-151.0,0.00041675,14]
[349182847,1737018646740,-288.144568,0.00041675,14]
[349182849,1737018646749,-461.99880906,0.00041675,25]
[349182851,1737018646763,-374.54119094,0.00041675,25]
[349182853,1737018646772,-836.54,0.00041675,25]
[349182855,1737018646781,-1439.61,0.00041675,25]
[349182857,1737018646791,-836.54,0.00041675,25]
[349182859,1737018646802,-1439.61,0.00041675,25]
[349182861,1737018646812,-836.54,0.00041675,25]
[349182863,1737018646822,-1439.61,0.00041675,25]
[349182864,1737018646832,-500.0,0.00041675,25]
[349182866,1737018646842,-500.0,0.00041675,25]
[349182868,1737018646852,-500.0,0.00041675,25]
[349182870,1737018646862,-500.0,0.00041675,25]
[349182872,1737018646872,-506.44884165,0.00041675,25]
[349182873,1737018646881,-500.0,0.00041675,25]
[349182875,1737018646890,-500.0,0.00041675,25]
[349182877,1737018646900,-500.0,0.00041675,25]
[349182879,1737018646909,-500.0,0.00041675,25]
[349182881,1737018646919,-500.0,0.00041675,25]
[349182883,1737018646928,-500.0,0.00041675,25]
[349182885,1737018646937,-500.0,0.00041675,25]
[349182887,1737018646947,-1125.41,0.00041675,25]
[349182889,1737018646960,-1125.41,0.00041675,25]
[349182891,1737018646971,-1125.41,0.00041675,25]
[349182892,1737018646980,-500.0,0.00041675,25]
[349182895,1737018646991,-500.0,0.00041675,25]
[349182896,1737018647001,-500.0,0.00041675,25]
[349182897,1737018647010,-500.0,0.00041675,25]
[349182898,1737018647020,-500.0,0.00041675,25]
[349182899,1737018647029,-3483.75,0.00041675,25]
[349182900,1737018647039,-500.0,0.00041675,25]
[349182901,1737018647050,-500.0,0.00041675,25]
[349182902,1737018647060,-3483.75,0.00041675,25]
[349182903,1737018647069,-1861.13,0.00041675,25]
[349182904,1737018647078,-500.0,0.00041675,25]
[349182905,1737018647088,-500.0,0.00041675,25]
[349182906,1737018647098,-3483.75,0.00041675,25]
[349182907,1737018647108,-1861.13,0.00041675,25]
[349182908,1737018647117,-500.0,0.00041675,25]
[349182909,1737018647126,-151.0,0.00041675,14]
[349182910,1737018647136,-593.99484072,0.00041675,25]
[349182911,1737018647145,-1861.13,0.00041675,25]
[349182912,1737018647155,-151.0,0.00041675,14]
[349182913,1737018647165,-1861.13,0.00041675,25]
[349182914,1737018647175,-151.0,0.00041675,14]
[349182915,1737018647185,-151.0,0.00041675,14]
[349182916,1737018647195,-235.36816672,0.00041675,25]
[349182917,1737018647204,-151.0,0.00041675,14]
[349182918,1737018647214,-500.0,0.00041675,25]
[349182919,1737018647224,-151.0,0.00041675,14]
[349182920,1737018647234,-500.0,0.00041675,25]
[349182921,1737018647244,-500.0,0.00041675,25]
[349182922,1737018647253,-500.0,0.00041675,25]
[349182923,1737018647264,-500.0,0.00041675,25]
[349182924,1737018647273,-500.0,0.00041675,25]
[349182925,1737018647283,-500.0,0.00041675,25]
[349182926,1737018647292,-500.0,0.00041675,25]
[349182927,1737018647303,-500.0,0.00041675,25]
[349182928,1737018647313,-500.0,0.00041675,25]
[349182929,1737018647323,-500.0,0.00041675,25]
[349182930,1737018647332,-500.0,0.00041675,25]
[349182931,1737018647341,-500.0,0.00041675,25]
[349182932,1737018647351,-500.0,0.00041675,25]
[349182933,1737018647361,-500.0,0.00041675,25]
[349182934,1737018647370,-642.94,0.00041675,25]
[349182935,1737018647380,-500.0,0.00041675,25]
[349182936,1737018647390,-642.94,0.00041675,25]
[349182937,1737018647400,-500.0,0.00041675,25]
[349182938,1737018647411,-642.94,0.00041675,25]
[349182939,1737018647422,-642.94,0.00041675,25]
[349182940,1737018647434,-500.0,0.00041675,25]
[349182941,1737018647444,-500.0,0.00041675,25]
[349182942,1737018647454,-500.0,0.00041675,25]
[349182943,1737018647463,-518.99579146,0.00041675,25]
[349182944,1737018647473,-151.0,0.00041675,14]
[349182945,1737018647483,-151.0,0.00041675,14]
[349182946,1737018647494,-151.0,0.00041675,14]
[349182947,1737018647505,-151.0,0.00041675,14]
[349182948,1737018647515,-230.168912,0.00041675,14]
[349182949,1737018647524,-500.0,0.00041675,25]
[349182950,1737018647534,-500.0,0.00041675,25]
[349182951,1737018647544,-500.0,0.00041675,25]
[349182952,1737018647555,-500.0,0.00041675,25]
[349182953,1737018647565,-1342.3,0.00041675,25]
[349182954,1737018647575,-1342.3,0.00041675,25]
[349182955,1737018647585,-223.84909685,0.00041675,25]
[349182956,1737018647599,-292.80640999,0.00041675,25]
[349182957,1737018647611,-825.64449316,0.00041675,25]
[349182958,1737018647621,-500.0,0.00041675,7]
[349182959,1737018647630,-529.67857793,0.00041675,25]
[349182960,1737018647639,-1342.3,0.00041675,25]
[349182961,1737018647649,-500.0,0.00041675,25]
[349182962,1737018647659,-500.0,0.00041675,25]
[349182963,1737018647668,-500.0,0.00041675,25]
[349182964,1737018647677,-500.0,0.00041675,25]
[349182965,1737018647687,-490.93319322,0.00041675,25]
[349182966,1737018647697,-500.0,0.00041675,25]
[349182967,1737018647707,-500.0,0.00041675,25]
[349182968,1737018647717,-500.0,0.00041675,25]
[349182969,1737018647727,-303.21645061,0.00041675,25]
[349182970,1737018647736,-500.0,0.00041675,25]
[349182971,1737018647746,-500.0,0.00041675,25]
[349182972,1737018647756,-500.0,0.00041675,25]
[349182973,1737018647765,-500.0,0.00041675,25]
[349182974,1737018647775,-500.0,0.00041675,25]
[349182975,1737018647785,-500.0,0.00041675,25]
[349182976,1737018647795,-500.0,0.00041675,25]
[349182977,1737018647805,-500.0,0.00041675,25]
[349182978,1737018647815,-500.0,0.00041675,25]
[349182979,1737018647826,-500.0,0.00041675,25]
[349182980,1737018647836,-500.0,0.00041675,25]
[349182981,1737018647848,-500.0,0.00041675,25]
[349182982,1737018647858,-552.12912621,0.00041675,25]
[349182983,1737018647869,-500.0,0.00041675,25]
[349182984,1737018647880,-500.0,0.00041675,25]
[349182985,1737018647891,-513.50927979,0.00041675,25]
[349182986,1737018647901,-500.0,0.00041675,25]
[349182987,1737018647911,-500.0,0.00041675,25]
[349182988,1737018647921,-500.0,0.00041675,25]
[349182989,1737018647931,-500.0,0.00041675,25]
[349182990,1737018647940,-500.0,0.00041675,25]
[349182991,1737018647950,-405.38590909,0.00041675,25]
[349182992,1737018647960,-500.0,0.00041675,25]
[349182993,1737018647969,-500.0,0.00041675,25]
[349182994,1737018647979,-500.0,0.00041675,25]
[349182995,1737018647989,-500.0,0.00041675,25]
[349182996,1737018647999,-500.0,0.00041675,25]
[349182997,1737018648010,-500.0,0.00041675,25]
[349182998,1737018648021,-500.0,0.00041675,25]
[349182999,1737018648032,-500.0,0.00041675,25]
[349183000,1737018648044,-500.0,0.00041675,25]
[349183001,1737018648058,-214.916392,0.00041675,14]
[349183002,1737018648069,-500.0,0.00041675,25]
[349183003,1737018648081,-500.0,0.00041675,25]
[349183004,1737018648092,-500.0,0.00041675,25]
[349183005,1737018648103,-500.0,0.00041675,25]
[349183006,1737018648114,-500.0,0.00041675,25]
[349183007,1737018648126,-500.0,0.00041675,25]
[349183008,1737018648136,-510.58173832,0.00041675,25]
[349183009,1737018648146,-453.59169144,0.00041675,25]
[349183012,1737019537135,-1013.0,0.000212,2]
[349183013,1737019537157,-151.0,0.0003,120]
[349183014,1737019537180,-151.0,0.0003,120]
[349183015,1737019537203,-151.0,0.00032849,120]
[349183016,1737019537225,-151.0,0.00033014,120]
[349183017,1737019537247,-151.0,0.00035699,120]
[349183018,1737019537268,-151.0,0.00036027,120]
[349183019,1737019537291,-150.0,0.00038342,7]
[349183020,1737019537314,-150.0,0.00038342,7]
[349183021,1737019537496,-150.0,0.00038396,7]
[349183022,1737019537525,-150.0,0.0003845,7]
[349183023,1737019537547,-150.0,0.00038504,7]
[349183024,1737019537570,-150.0,0.00038506,7]
[349183025,1737019537595,-654.67,0.00038546,2]
[349183026,1737019537617,-151.0,0.00038548,120]
[349183027,1737019537640,-127.74723197,0.00038558,7]
[349183031,1737019556020,1474.58226318,0.000129,7]
[349183034,1737019630140,-455.28140761,0.000295,21]
[349183035,1737019630164,-151.0,0.0003,120]
[349183036,1737019630186,-153.0,0.00033059,2]
[349183037,1737019630208,-151.0,0.00033151,120]
[349183038,1737019630230,-151.0,0.00036301,120]
[349183039,1737019630253,-150.0,0.00038342,7]
[349183040,1737019630276,-186.98192032,0.00038342,7]
[349183041,1737019630297,-150.0,0.00038342,7]
[349183042,1737019630318,-121.54255228,0.00038342,7]
[349183043,1737019634093,-28.45744772,0.00038342,7]
[349183044,1737019634116,-150.0,0.00038472,7]
[349183045,1737019634139,-22.25276803,0.00038558,7]
[349183046,1737019634162,-150.0,0.00038601,7]
[349183047,1737019634184,-150.0,0.00038612,7]
[349183048,1737019634206,-150.0,0.00038666,7]
[349183049,1737019634226,-150.0,0.0003867,7]
[349183050,1737019634247,-150.0,0.0003872,7]
[349183051,1737019634270,-150.0,0.0003873,7]
[349183052,1737019634291,-150.0,0.00038774,7]
[349183053,1737019634311,-103.26635207,0.00038828,7]
[349183054,1737019644106,-46.73364793,0.00038828,7]
[349183055,1737019644129,-150.0,0.00038834,7]
[349183056,1737019644153,-150.0,0.00038859,7]
[349183057,1737019644174,-150.0,0.00038882,7]
[349183058,1737019644196,-320.0,0.00038935,5]
[349183059,1737019644219,-150.0,0.00038936,7]
[349183060,1737019644241,-150.0,0.00038988,7]
[349183061,1737019644262,-150.0,0.0003899,7]
[349183062,1737019644288,-150.0,0.00038998,7]
[349183063,1737019644311,-250.0,0.00039002,120]
[349183064,1737019644333,-150.0,0.00039044,7]
[349183065,1737019644354,-150.0,0.00039097,7]
[349183066,1737019644376,-150.0,0.00039117,7]
[349183067,1737019644398,-150.0,0.00039151,7]
[349183068,1737019644419,-150.0,0.00039162,7]
[349183069,1737019644440,-150.0,0.00039195,7]
[349183070,1737019644461,-150.0,0.00039205,7]
[349183071,1737019644482,-150.0,0.00039246,7]
[349183072,1737019644504,-132.3390902,0.00039259,7]
[349183073,1737019649093,-17.6609098,0.00039259,7]
[349183074,1737019649114,-150.0,0.00039313,7]
[349183075,1737019649136,-150.0,0.00039326,7]
[349183076,1737019649158,-150.0,0.00039367,7]
[349183077,1737019649178,-150.0,0.00039375,7]
[349183078,1737019649200,-150.0,0.00039421,7]